Workbook

Sheet Top page

Sheet Sheet1 (hidden)

Sheet Only the hole bottom (hidden)
H13: ロング穴深さ(mm) Long hole depth | I13: =ROUND(fFukasa-fDC*0.42,3) -> 195.8
H15: プログラム番号 Program No. | I15: 200
H16: 加工穴径Dc(mm) Drilling dia. | I16: 10
H17: 指定穴深さ(mm) Specified hole depth | I17: 200
H19: ガイド部 Pilot hole section
H20: リファレンス点R(mm) Reference point | I20: 10
H21: 穴深さ(mm) Hole depth | I21: 30
H22: 回転数n(min-1) Revolution | I22: 500
H23: 送り速度vf(mm/min) Feed speed | I23: 200
H25: 戻り条件 Return condition
B26: 穴底R部 Bottom R section | E26: 穴中間部 Hole middle section | H26: 回転数n(min-1) Revolution | I26: 500
B27: 穴深さ(mm) Hole depth | C27: =ROUND(fQ*50,3) -> 5 | E27: 穴深さ(mm) Hole depth | F27: =ROUND(fFukasa-fGfukasa-fAfukasa,3) -> 165 | H27: 戻り送り速度vf(mm/min) Return feed speed | I27: 2000
B28: インチング送り量f(mm/rev) Inching feed rate | C28: 0.02 | E28: 回転数n(min-1) Revolution | F28: =ROUND(fHayasa*1000/fDC/3.14,0) -> 2229
B29: インチング送り速度vf(mm/min) Inching feed speed | C29: =ROUND(fO*fF,0) -> 45 | E29: 切削速度vc(m/min) Cutting speed | F29: 70
B30: インチング量(mm) Inching amount | C30: =ROUNDUP(fDC/100,3) -> 0.1 | E30: 送り量f(mm/rev) feed rate | F30: 0.2
B31: インチング戻り量(mm) Inching return amount | C31: 0.2 | E31: 送り速度vf(mm/min) Feed speed | F31: =ROUND(fH*fF,0) -> 446
B32: インチング戻り速度vf(mm/min) Inching return feed speed | C32: 100 | E32: 回転後ドウェル(sec) Dwell after revolted | F32: 1
B33: インチングドウェル(sec) Inching dwell | C33: 0.1
B34: 穴底ドウェル(sec) Dwell for hole bottom | C34: 0.3

Sheet The hole walls and hole bottom (hidden)
H14: ロング穴深さ(mm) Long hole depth | I14: =ROUND(f2Fukasa-f2DC*0.42,3) -> 195.8
H16: プログラム番号 Program No. | I16: 200
H17: 加工穴径Dc(mm) Drilling diameter | I17: 10
H18: 指定穴深さ(mm) Specified hole depth | I18: 200
H20: ガイド部 Pilot hole section
H21: リファレンス点R(mm) Reference point | I21: 10
H22: 穴深さ(mm) Hole depth | I22: 30
H23: 回転数n(min-1) Revolution | I23: 500
H24: 送り速度vf(mm/min) Feed speed | I24: 200
H26: 穴入口部 Hole entrance section
H27: 穴深さ(mm) Hole depth | I27: =ROUND(f2DC*2,3) -> 20
H28: 回転数n(min-1) Revolution | I28: =ROUND(f2Hayasa*1000/f2DC/3.14,0) -> 2229
H29: 切削速度vc(m/min) Cutting speed | I29: 70
H30: 送り量f(mm/rev) Feed rate | I30: 0.05
B31: 穴底R部 Hole bottom R section | E31: 穴中間部 Hole middle section | H31: 送り速度vf(mm/min) Feed speed | I31: =ROUND(f2H*f2F,0) -> 111
B32: 穴深さ(mm) Hole depth | C32: =ROUND(f2Q*50,3) -> 5 | E32: 穴深さ(mm) Hole depth | F32: =ROUND(f2Fukasa-f2Afukasa-f2Gfukasa-f2E,3) -> 145 | H32: 回転後ドウェル(sec) Revolted dwell | I32: 1
B33: インチング送り量f(mm/rev) Inching feed rate | C33: 0.02 | E33: 送り量f(mm/rev) Feed rate | F33: 0.1
B34: インチング送り速度vf(mm/min) Inching feed speed | C34: =ROUND(f2O*f2F,0) -> 45 | E34: 送り速度vf(mm/min) Feed speed | F34: =ROUND(f2L*f2F,0) -> 223
B35: インチング量(mm) Inching amount | C35: =ROUNDUP(f2DC/100,3) -> 0.1
B36: インチング戻り量(mm) Inching return amount | C36: 0.2 | E36: 戻り条件 Return condition
B37: インチング戻り速度vf(mm/min) Inching return feed speed | C37: 100 | E37: 回転数n(min-1) Revolution | F37: 500
B38: インチングドウェル(sec) Inching dwell | C38: 0.1 | E38: 戻り送り速度vf(mm/min) Return feed speed | F38: 2000
B39: 穴底ドウェル(sec) Dwell for hole bottom | C39: 0.3

Sheet 元表 (hidden)
B1: ■標準切削条件 | C1: WHSR-ATH
B3: 穴底のみ仕上げる場合
B4: 被削材 | C4: 切削速度 | D4: 加工部 | E4: 切削条件 | F4: 目安 | G4: 直径 mm
C5: m/min | G5: 3 | H5: 4 | I5: 6 | J5: 8 | K5: 8.5 | L5: 10 | M5: 11.5 | N5: 12
B6: プリハードン鋼 | C6: 内部クーラント 40～ 70 ～100 | E6: 回転数 min-1 | G6: =70*1000/G5/3.14 -> 7430.997877 | H6: =70*1000/H5/3.14 -> 5573.248408 | I6: 3715.498938 | J6: 2786.624204 | K6: 2622.705133 | L6: 2229.299363 | M6: 1938.521185 | N6: 1857.749469
B7: 焼入れ鋼 | D7: 穴中間部 | E7: 送り量 mm/rev | F7: Dc×(1～2～3)% | G7: =G5*0.02 -> 0.06 | H7: =H5*0.02 -> 0.08 | I7: 0.12 | J7: 0.16 | K7: 0.17 | L7: 0.2 | M7: 0.23 | N7: 0.24
B8: （焼入れ前～50HRC） | E8: 送り速度 mm/min | G8: =G6*G7 -> 445.8598726 | H8: 445.8598726 | I8: 445.8598726 | J8: 445.8598726 | K8: 445.8598726 | L8: 445.8598726 | M8: 445.8598726 | N8: 445.8598726
B9: SUS | D9: 穴底R部 =1/2Dc | E9: インチング送り量 mm/rev | F9: Dc×(0.2～0.4～0.6)% | G9: =G5*0.004 -> 0.012 | H9: =H5*0.004 -> 0.016 | I9: 0.024 | J9: 0.032 | K9: 0.034 | L9: 0.04 | M9: 0.046 | N9: 0.048
E10: インチング送り速度 mm/min | G10: =G6*G9 -> 89.17197452 | H10: 89.17197452 | I10: 89.17197452 | J10: 89.17197452 | K10: 89.17197452 | L10: 89.17197452 | M10: 89.17197452 | N10: 89.17197452
E11: インチング量 mm | F11: Dc×1% | G11: =G5*0.01 -> 0.03 | H11: 0.04 | I11: 0.06 | J11: 0.08 | K11: 0.085 | L11: 0.1 | M11: 0.115 | N11: 0.12
E12: インチング戻り量 mm | F12: 0.2
E13: インチングドウェル sec | F13: 0.1
E14: 穴底ドウェル sec | F14: 0.3
B16: 穴壁と穴底を仕上げる場合
B17: 被削材 | C17: 切削速度 | D17: 加工部 | E17: 切削条件 | F17: 目安 | G17: 直径 mm
C18: m/min | G18: 3 | H18: 4 | I18: 6 | J18: 8 | K18: 8.5 | L18: 10 | M18: 11.5 | N18: 12
B19: プリハードン鋼 | C19: 内部クーラント 40～ 70 ～100 | E19: 回転数 min-1 | G19: =70*1000/G18/3.14 -> 7430.997877 | H19: =70*1000/H18/3.14 -> 5573.248408 | I19: 3715.498938 | J19: 2786.624204 | K19: 2622.705133 | L19: 2229.299363 | M19: 1938.521185 | N19: 1857.749469
B20: 焼入れ鋼 | D20: 穴入口部 =2Dc | E20: 送り量 mm/rev | F20: Dc×(0.5～1～1.5)% | G20: =G18*0.01 -> 0.03 | H20: =H18*0.01 -> 0.04 | I20: 0.06 | J20: 0.08 | K20: 0.085 | L20: 0.1 | M20: 0.115 | N20: 0.12
B21: （焼入れ前～45HRC） | E21: 送り速度 mm/min | G21: =G19*G20 -> 222.9299363 | H21: =H19*H20 -> 222.9299363 | I21: 222.9299363 | J21: 222.9299363 | K21: 222.9299363 | L21: 222.9299363 | M21: 222.9299363 | N21: 222.9299363
D22: 穴中間部 | E22: 送り量 mm/rev | F22: Dc×(0.5～1.2～2)% | G22: =G18*0.012 -> 0.036 | H22: =H18*0.012 -> 0.048 | I22: 0.072 | J22: 0.096 | K22: 0.102 | L22: 0.12 | M22: 0.138 | N22: 0.144
E23: 送り速度 mm/min | G23: =G19*G22 -> 267.5159236 | H23: =H19*H22 -> 267.5159236 | I23: 267.5159236 | J23: 267.5159236 | K23: 267.5159236 | L23: 267.5159236 | M23: 267.5159236 | N23: 267.5159236
D24: 穴底R部 =1/2Dc | E24: インチング送り量 mm/rev | F24: Dc×(0.2～0.4～0.6)% | G24: =G18*0.004 -> 0.012 | H24: =H18*0.004 -> 0.016 | I24: 0.024 | J24: 0.032 | K24: 0.034 | L24: 0.04 | M24: 0.046 | N24: 0.048
E25: インチング送り速度 mm/min | G25: =G19*G24 -> 89.17197452 | H25: =H19*H24 -> 89.17197452 | I25: 89.17197452 | J25: 89.17197452 | K25: 89.17197452 | L25: 89.17197452 | M25: 89.17197452 | N25: 89.17197452
E26: インチング量 mm | F26: Dc×1% | G26: =G18*0.01 -> 0.03 | H26: =H18*0.01 -> 0.04 | I26: 0.06 | J26: 0.08 | K26: 0.085 | L26: 0.1 | M26: 0.115 | N26: 0.12
E27: インチング戻り量 mm | F27: 0.2
E28: インチングドウェル sec | F28: 0.1
E29: 穴底ドウェル sec | F29: 0.3
B30: プリハードン鋼 | C30: 内部クーラント 30～ 70 ～100 | E30: 回転数 min-1 | G30: =70*1000/G18/3.14 -> 7430.997877 | H30: =70*1000/H18/3.14 -> 5573.248408 | I30: 3715.498938 | J30: 2786.624204 | K30: 2622.705133 | L30: 2229.299363 | M30: 1938.521185 | N30: 1857.749469
B31: 焼入れ鋼 | D31: 穴挿入部 =2Dc | E31: 送り量 mm/rev | F31: Dc×(0.25～0.5～1)% | G31: =G18*0.005 -> 0.015 | H31: =H18*0.005 -> 0.02 | I31: 0.03 | J31: 0.04 | K31: 0.0425 | L31: 0.05 | M31: 0.0575 | N31: 0.06
B32: （45～50HRC） | E32: 送り速度 mm/min | G32: =G30*G31 -> 111.4649682 | H32: =H30*H31 -> 111.4649682 | I32: 111.4649682 | J32: 111.4649682 | K32: 111.4649682 | L32: 111.4649682 | M32: 111.4649682 | N32: 111.4649682
B33: SUS | D33: 穴中間部 | E33: 送り量 mm/rev | F33: Dc×(0.5～1～1.5)% | G33: =G18*0.01 -> 0.03 | H33: =H18*0.01 -> 0.04 | I33: 0.06 | J33: 0.08 | K33: 0.085 | L33: 0.1 | M33: 0.115 | N33: 0.12
E34: 送り速度 mm/min | G34: =G30*G33 -> 222.9299363 | H34: =H30*H33 -> 222.9299363 | I34: 222.9299363 | J34: 222.9299363 | K34: 222.9299363 | L34: 222.9299363 | M34: 222.9299363 | N34: 222.9299363
D35: 穴底R部 =1/2Dc | E35: インチング送り量 mm/rev | F35: Dc×(0.2～0.4～0.6)% | G35: =G18*0.004 -> 0.012 | H35: =H18*0.004 -> 0.016 | I35: 0.024 | J35: 0.032 | K35: 0.034 | L35: 0.04 | M35: 0.046 | N35: 0.048
E36: インチング送り速度 mm/min | G36: =G30*G35 -> 89.17197452 | H36: =H30*H35 -> 89.17197452 | I36: 89.17197452 | J36: 89.17197452 | K36: 89.17197452 | L36: 89.17197452 | M36: 89.17197452 | N36: 89.17197452
E37: インチング量 mm | F37: Dc×1% | G37: =G18*0.01 -> 0.03 | H37: =H18*0.01 -> 0.04 | I37: 0.06 | J37: 0.08 | K37: 0.085 | L37: 0.1 | M37: 0.115 | N37: 0.12
E38: インチング戻り量 mm | F38: 0.2
E39: インチングドウェル sec | F39: 0.1
E40: 穴底ドウェル sec | F40: 0.3

Sheet Data (hidden)
A1: 穴底のみを仕上げる場合 | M1: 被削材
D2: 穴入口部 | F2: 穴中間部 | H2: 穴底R部
A3: 直径 | B3: 切削速度 | C3: 回転数 | D3: 送り量 | E3: 送り速度 | F3: 送り量 | G3: 送り速度 | H3: 送り量 | I3: 送り速度 | J3: インチング量 | M3: 鋼 焼き入れ前～45HRC以下
A4: 3 | B4: 70 | C4: =70*1000/A4/3.14 -> 7430.997877 | F4: =A4*0.02 -> 0.06 | G4: =C4*F4 -> 445.8598726 | H4: =A4*0.004 -> 0.012 | I4: =C4*H4 -> 89.17197452 | J4: =A4*0.01 -> 0.03 | M4: 鋼 45HRC越え
A5: 4 | B5: 70 | C5: =70*1000/A5/3.14 -> 5573.248408 | F5: =A5*0.02 -> 0.08 | G5: =C5*F5 -> 445.8598726 | H5: =A5*0.004 -> 0.016 | I5: =C5*H5 -> 89.17197452 | J5: =A5*0.01 -> 0.04 | M5: ステンレス鋼
A6: 5 | B6: 70 | C6: 4458.598726 | F6: 0.1 | G6: 445.8598726 | H6: =A6*0.004 -> 0.02 | I6: =C6*H6 -> 89.17197452 | J6: 0.05
A7: 6 | B7: 70 | C7: 3715.498938 | F7: 0.12 | G7: 445.8598726 | H7: =A7*0.004 -> 0.024 | I7: =C7*H7 -> 89.17197452 | J7: 0.06
A8: 7 | B8: 70 | C8: 3184.713376 | F8: 0.14 | G8: 445.8598726 | H8: 0.024 | I8: =C8*H8 -> 76.43312102 | J8: 0.07
A9: 8 | B9: 70 | C9: 2786.624204 | F9: 0.16 | G9: 445.8598726 | H9: 0.024 | I9: 67 | J9: 0.08
A10: 8.5 | B10: 70 | C10: 2622.705133 | F10: 0.17 | G10: 445.8598726 | H10: 0.026 | I10: 67 | J10: 0.085
A11: 9 | B11: 70 | C11: 2476.999292 | F11: 0.18 | G11: 445.8598726 | H11: 0.025 | I11: 63 | J11: 0.09
A12: 9.5 | B12: 70 | C12: 2346.630908 | F12: 0.19 | G12: 445.8598726 | H12: 0.025 | I12: =C12*H12 -> 58.66577271 | J12: 0.095
A13: 10 | B13: 70 | C13: 2229.299363 | F13: 0.2 | G13: 445.8598726 | H13: 0.02 | I13: 44.58598726 | J13: 0.1
A14: 10.5 | B14: 70 | C14: 2123.142251 | F14: 0.21 | G14: 445.8598726 | H14: 0.021 | I14: 44.58598726 | J14: 0.105
A15: 11 | B15: 70 | C15: 2026.635785 | F15: 0.22 | G15: 445.8598726 | H15: 0.022 | I15: 44.58598726 | J15: 0.11
A16: 11.5 | B16: 70 | C16: 1938.521185 | F16: 0.23 | G16: 445.8598726 | H16: 0.023 | I16: 44.58598726 | J16: 0.115
A17: 12 | B17: 70 | C17: 1857.749469 | F17: 0.24 | G17: 445.8598726 | H17: 0.024 | I17: 44.58598726 | J17: 0.12
A20: 穴壁と穴底を仕上げる場合×プリハードン鋼焼入れ鋼（～45HRC）の場合
A21: 3 | B21: 70 | C21: =70*1000/A21/3.14 -> 7430.997877 | D21: =A21*0.01 -> 0.03 | E21: =C21*D21 -> 222.9299363 | F21: =A21*0.012 -> 0.036 | G21: =C21*F21 -> 267.5159236 | H21: =A21*0.004 -> 0.012 | I21: =C21*H21 -> 89.17197452 | J21: =A21*0.01 -> 0.03
A22: 4 | B22: 70 | C22: =70*1000/A22/3.14 -> 5573.248408 | D22: 0.04 | E22: 222.9299363 | F22: 0.048 | G22: 267.5159236 | H22: =A22*0.004 -> 0.016 | I22: =C22*H22 -> 89.17197452 | J22: =A22*0.01 -> 0.04
A23: 5 | B23: 70 | C23: 4458.598726 | D23: 0.05 | E23: 222.9299363 | F23: 0.06 | G23: 267.5159236 | H23: =A23*0.004 -> 0.02 | I23: =C23*H23 -> 89.17197452 | J23: 0.05
A24: 6 | B24: 70 | C24: 3715.498938 | D24: 0.06 | E24: 222.9299363 | F24: 0.072 | G24: 267.5159236 | H24: =A24*0.004 -> 0.024 | I24: =C24*H24 -> 89.17197452 | J24: 0.06
A25: 7 | B25: 70 | C25: 3184.713376 | D25: 0.07 | E25: 222.9299363 | F25: 0.084 | G25: 267.5159236 | H25: 0.024 | I25: =C25*H25 -> 76.43312102 | J25: 0.07
A26: 8 | B26: 70 | C26: 2786.624204 | D26: 0.08 | E26: 222.9299363 | F26: 0.096 | G26: 267.5159236 | H26: 0.024 | I26: 67 | J26: 0.08
A27: 8.5 | B27: 70 | C27: 2622.705133 | D27: 0.085 | E27: 222.9299363 | F27: 0.102 | G27: 267.5159236 | H27: 0.026 | I27: 67 | J27: 0.085
A28: 9 | B28: 70 | C28: 2476.999292 | D28: 0.09 | E28: 222.9299363 | F28: 0.108 | G28: 267.5159236 | H28: 0.025 | I28: 63 | J28: 0.09
A29: 9.5 | B29: 70 | C29: 2346.630908 | D29: =A29*0.01 -> 0.095 | E29: 222.9299363 | F29: =A29*0.012 -> 0.114 | G29: =C29*F29 -> 267.5159236 | H29: 0.025 | I29: =C29*H29 -> 58.66577271 | J29: 0.095
A30: 10 | B30: 70 | C30: 2229.299363 | D30: 0.1 | E30: 222.9299363 | F30: 0.12 | G30: 267.5159236 | H30: 0.02 | I30: 44.58598726 | J30: 0.1
A31: 10.5 | B31: 70 | C31: 2123.142251 | D31: 0.105 | E31: 222.9299363 | F31: 0.126 | G31: 267.5159236 | H31: 0.021 | I31: 44.58598726 | J31: 0.105
A32: 11 | B32: 70 | C32: 2026.635785 | D32: 0.11 | E32: 222.9299363 | F32: 0.132 | G32: 267.5159236 | H32: 0.022 | I32: 44.58598726 | J32: 0.11
A33: 11.5 | B33: 70 | C33: 1938.521185 | D33: 0.115 | E33: 222.9299363 | F33: 0.138 | G33: 267.5159236 | H33: 0.023 | I33: 44.58598726 | J33: 0.115
A34: 12 | B34: 70 | C34: 1857.749469 | D34: 0.12 | E34: 222.9299363 | F34: 0.144 | G34: 267.5159236 | H34: 0.024 | I34: 44.58598726 | J34: 0.12
A37: 穴壁と穴底を仕上げる場合×プリハードン鋼焼入れ鋼（45～50HRC）の場合
A38: 3 | B38: 70 | C38: =70*1000/A38/3.14 -> 7430.997877 | D38: =A38*0.005 -> 0.015 | E38: =C38*D38 -> 111.4649682 | F38: =A38*0.01 -> 0.03 | G38: =F38*C38 -> 222.9299363 | H38: =A38*0.004 -> 0.012 | I38: =C38*H38 -> 89.17197452 | J38: =A38*0.01 -> 0.03
A39: 4 | B39: 70 | C39: =70*1000/A39/3.14 -> 5573.248408 | D39: =A39*0.005 -> 0.02 | E39: 111.4649682 | F39: =A39*0.01 -> 0.04 | G39: =F39*C39 -> 222.9299363 | H39: =A39*0.004 -> 0.016 | I39: =C39*H39 -> 89.17197452 | J39: =A39*0.01 -> 0.04
A40: 5 | B40: 70 | C40: 4458.598726 | D40: 0.025 | E40: 111.4649682 | F40: 0.05 | G40: 222.9299363 | H40: =A40*0.004 -> 0.02 | I40: =C40*H40 -> 89.17197452 | J40: 0.05
A41: 6 | B41: 70 | C41: 3715.498938 | D41: 0.03 | E41: 111.4649682 | F41: 0.06 | G41: 222.9299363 | H41: =A41*0.004 -> 0.024 | I41: =C41*H41 -> 89.17197452 | J41: 0.06
A42: 7 | B42: 70 | C42: 3184.713376 | D42: 0.035 | E42: 111.4649682 | F42: 0.07 | G42: 222.9299363 | H42: 0.024 | I42: =C42*H42 -> 76.43312102 | J42: 0.07
A43: 8 | B43: 70 | C43: 2786.624204 | D43: 0.04 | E43: 111.4649682 | F43: 0.08 | G43: 222.9299363 | H43: 0.024 | I43: 67 | J43: 0.08
A44: 8.5 | B44: 70 | C44: 2622.705133 | D44: 0.0425 | E44: 111.4649682 | F44: 0.085 | G44: 222.9299363 | H44: 0.026 | I44: 67 | J44: 0.085
A45: 9 | B45: 70 | C45: 2476.999292 | D45: 0.045 | E45: 111.4649682 | F45: 0.09 | G45: 222.9299363 | H45: 0.025 | I45: 63 | J45: 0.09
A46: 9.5 | B46: 70 | C46: 2346.630908 | D46: 0.0475 | E46: 111.4649682 | F46: 0.095 | G46: 222.9299363 | H46: 0.025 | I46: =C46*H46 -> 58.66577271 | J46: 0.095
A47: 10 | B47: 70 | C47: 2229.299363 | D47: 0.05 | E47: 111.4649682 | F47: 0.1 | G47: 222.9299363 | H47: 0.02 | I47: 44.58598726 | J47: 0.1
A48: 10.5 | B48: 70 | C48: 2123.142251 | D48: 0.0525 | E48: 111.4649682 | F48: 0.105 | G48: 222.9299363 | H48: 0.021 | I48: 44.58598726 | J48: 0.105
A49: 11 | B49: 70 | C49: 2026.635785 | D49: 0.055 | E49: 111.4649682 | F49: 0.11 | G49: 222.9299363 | H49: 0.022 | I49: 44.58598726 | J49: 0.11
A50: 11.5 | B50: 70 | C50: 1938.521185 | D50: 0.0575 | E50: 111.4649682 | F50: 0.115 | G50: 222.9299363 | H50: 0.023 | I50: 44.58598726 | J50: 0.115
A51: 12 | B51: 70 | C51: 1857.749469 | D51: 0.06 | E51: 111.4649682 | F51: 0.12 | G51: 222.9299363 | H51: 0.024 | I51: 44.58598726 | J51: 0.12

Sheet NC program (hidden)
A1: %
A2: O200
A3: G90G01Z10.000F1000
A4: M3S500
A5: G91Z-40.000F200
A6: M3S2229
A7: G04X1.0
A8: Z-20.000F111
A9: Z-145.000F223
A10: #1=195.000
A11: WHILE[#1LT200.000]DO1
A12: G91G01Z0.200F100
A13: Z-0.300F45
A14: G04X0.1
A15: #1=#1+0.100
A16: END1
A17: M3S500
A18: G04X0.3
A19: G90G01Z10.000F2000
A20: M99
A21: %

Sheet Making program example (hidden)
A43: ①入力例
A44: Example of entering
A80: ②プログラム作成例 Example of creation

Sheet Cutting condition of News (hidden)

Sheet NC_PARA (hidden)
A1: %
A2: O
A3: G90G01Z | C3: F1000
A4: M3S
A5: G91Z- | C5: F
A6: M3S
A7: G04X
A8: Z- | C8: F
A9: #1=
A10: WHILE[#1LT | C10: ]DO1
A11: G91G01Z | C11: F
A12: Z | C12: F
A13: G04X
A14: #1=#1+
A15: END1
A16: M3S
A17: G04X
A18: G90G01Z | C18: F
A19: M99
A20: %

Sheet NC_PARA2 (hidden)
A1: %
A2: O
A3: G90G01Z | C3: F1000
A4: M3S
A5: G91Z- | C5: F
A6: M3S
A7: G04X
A8: Z- | C8: F
A9: Z- | C9: F
A10: #1=
A11: WHILE[#1LT | C11: ]DO1
A12: G91G01Z | C12: F
A13: Z | C13: F
A14: G04X
A15: #1=#1+
A16: END1
A17: M3S
A18: G04X
A19: G90G01Z | C19: F
A20: M99
A21: %
